bitfinex-derivatives/quotes_SOLF0:USTF0_20250928
["timestamp","ask_amount","ask_price","bid_price","bid_amount"]
[1759080494957,11.7354,204.69,204.63,1.71341343]
[1759080495459,7.32,204.66,204.6,1.71341343]
[1759080495855,7.32,204.64,204.58,1.71341343]
[1759080496053,7.32,204.64,204.56,1.71341343]
[1759080496753,1.71341343,204.65,204.52,48.85623619]
[1759080496754,7.32,204.7,204.62,1.71341343]
[1759080496962,7.32,204.7,204.64,1.71341343]
[1759080497165,7.32,204.7,204.63,7.47]
[1759080497458,7.32,204.73,204.65,1.71341343]
[1759080497655,1.71341343,204.72,204.63,7.47]
[1759080497854,9.03341343,204.71,204.63,7.47]
[1759080498055,9.03341343,204.71,204.63,9.18341343]
[1759080498251,7.32,204.71,204.63,9.18341343]
[1759080500257,7.32,204.71,204.63,7.47]
[1759080500561,7.32,204.67,204.59,1.71341343]
[1759080502556,9.03341343,204.67,204.59,1.71341343]
[1759080502952,7.32,204.63,204.53,7.47]
[1759080503157,7.32,204.63,204.54,1.71341343]
[1759080503761,1.71341343,204.62,204.54,1.71341343]
[1759080505957,1.71341343,204.62,204.52,1.71341343]
[1759080506164,9.36341343,204.58,204.49,9.29341343]
[1759080506465,7.65,204.58,204.51,1.71341343]
[1759080508765,7.65,204.58,204.52,4.3988]
[1759080509268,7.65,204.58,204.54,7.58]
[1759080510771,13.76011343,204.62,204.54,7.58]
[1759080513270,13.76011343,204.62,204.54,16.05443619]
[1759080515271,7.65,204.69,204.58,7.58]
[1759080515465,1.71341343,204.68,204.59,1.71341343]
[1759080515774,1.71341343,204.66,204.58,7.58]
[1759080515970,7.65,204.65,204.57,1.71341343]
[1759080517074,12.0462,204.65,204.57,1.71341343]
[1759080517773,7.65,204.65,204.59,1.71341343]
[1759080517973,7.65,204.65,204.59,9.29341343]
[1759080519666,7.65,204.65,204.59,13.69051343]
[1759080520674,7.65,204.65,204.59,9.29341343]
[1759080520873,7.65,204.65,204.57,4.07623619]
[1759080521166,7.65,204.65,204.56,4.07623619]
[1759080521167,1.71341343,204.63,204.56,4.07623619]
[1759080521369,7.65,204.62,204.55,17.76774962]
[1759080521570,7.65,204.62,204.54,4.07623619]
[1759080521775,7.65,204.6,204.53,4.07623619]
[1759080522070,7.65,204.6,204.53,5.78964962]
[1759080522275,7.65,204.6,204.55,1.71341343]
[1759080522577,7.65,204.6,204.55,9.29341343]
[1759080522774,7.65,204.6,204.55,1.71341343]
[1759080522980,80.6663,204.64,204.55,13.69141343]
[1759080523280,80.6663,204.64,204.57,1.71341343]
[1759080523472,80.6663,204.64,204.56,1.71341343]
[1759080523679,12.0463,204.64,204.56,1.71341343]
[1759080524272,13.75971343,204.64,204.56,1.71341343]
[1759080524679,13.75971343,204.64,204.56,5.78964962]
[1759080525582,4.3967,204.62,204.55,11.65623619]
[1759080525781,7.65,204.61,204.55,7.58]
[1759080525985,9.36341343,204.6,204.55,7.58]
[1759080526283,7.65,204.59,204.55,7.58]
[1759080526991,68.3777,204.67,204.53,4.07623619]
[1759080526992,1.71341343,204.58,204.53,4.07623619]
[1759080527284,7.65,204.57,204.53,11.65623619]
[1759080528979,1.71341343,204.6,204.54,7.58]
[1759080529186,1.71341343,204.6,204.54,11.65623619]
[1759080532685,1.71341343,204.58,204.53,4.07623619]
[1759080532989,1.71341343,204.58,204.53,7.58]
[1759080533190,7.65,204.57,204.53,7.58]
[1759080534292,12.0077,204.58,204.52,4.07623619]
[1759080534885,4.398,204.56,204.5,4.07623619]
[1759080535088,7.61,204.55,204.49,4.07623619]
[1759080535891,7.61,204.55,204.48,11.9595]
[1759080536494,12.0083,204.55,204.48,11.9595]
[1759080537592,7.07469942,204.57,204.49,7.56]
[1759080539487,7.07469942,204.57,204.49,11.9594]
[1759080540386,4.3978,204.57,204.49,11.9594]
[1759080545691,7.61,204.55,204.49,7.56]
[1759080546598,12.0083,204.55,204.49,7.56]
[1759080548600,12.0086,204.53,204.47,4.3998]
[1759080548803,12.0086,204.53,204.46,7.56]
[1759080549607,7.61,204.53,204.46,7.56]
[1759080550496,12.0087,204.53,204.46,7.56]
[1759080555003,134.3887,204.53,204.46,7.56]
[1759080557207,134.2287,204.53,204.46,7.56]
[1759080560507,12.0087,204.53,204.46,7.56]
[1759080560714,122.08,204.52,204.46,7.56]
[1759080562314,7.61,204.53,204.48,7.94]
[1759080562510,127.27,204.53,204.47,4.3999]
[1759080562710,127.27,204.53,204.48,7.94]
[1759080562912,127.27,204.53,204.47,4.3999]
[1759080563113,127.27,204.53,204.47,12.3399]
[1759080565717,7.61,204.53,204.47,12.3399]
[1759080565916,129.51,204.53,204.47,12.3399]
[1759080567012,7.61,204.53,204.47,12.3399]
[1759080567209,93.31,204.53,204.47,12.3399]
[1759080568215,93.31,204.53,204.43,6.34546033]
[1759080568216,121.86,204.52,204.42,12.85212724]
[1759080568514,7.76,204.51,204.42,7.41]
[1759080569619,4.3994,204.5,204.43,4.4007]
[1759080571023,7.76,204.49,204.43,4.4007]
[1759080571820,12.1597,204.49,204.42,7.41]
[1759080577534,12.1597,204.49,204.42,11.8109]
[1759080579140,7.76,204.5,204.45,7.41]
[1759080579342,7.76,204.5,204.44,11.8105]
[1759080583540,7.76,204.5,204.45,4.4003]
[1759080584242,94.799,204.52,204.45,4.4003]
[1759080584444,11.159272,204.51,204.45,4.4003]
[1759080584642,7.76,204.51,204.45,4.4003]
[1759080584843,2.67689942,204.52,204.4,14.3961765]
[1759080585040,7.76,204.5,204.41,7.41]
[1759080585638,12.1595,204.5,204.43,4.4007]
[1759080587241,3.44884001,204.49,204.43,4.4007]
[1759080587545,12.1595,204.5,204.43,4.4007]
[1759080587748,3.44884001,204.49,204.43,4.4007]
[1759080588043,12.1595,204.5,204.43,4.4007]
[1759080588235,3.44884001,204.49,204.43,4.4007]
[1759080588439,12.1595,204.5,204.43,4.4007]
[1759080588643,3.44904704,204.49,204.43,4.4007]
[1759080588845,12.1595,204.5,204.43,4.4007]
[1759080590148,7.76,204.48,204.41,11.8112]
[1759080590351,7.76,204.51,204.41,11.8112]
[1759080590546,7.76,204.49,204.41,11.8112]
[1759080590747,121.16,204.51,204.41,11.8112]
[1759080590941,7.76,204.49,204.41,11.8112]
[1759080591147,7.76,204.5,204.41,11.8112]
[1759080591345,7.76,204.48,204.42,7.41]
[1759080591545,12.1599,204.48,204.42,7.41]
[1759080595352,4.4001,204.47,204.42,7.41]
[1759080595656,7.37,204.46,204.42,7.41]
[1759080595847,7.37,204.46,204.42,7.61]
[1759080596550,7.37,204.46,204.41,4.4012]
[1759080596755,7.37,204.46,204.42,7.61]
[1759080596948,7.37,204.46,204.41,4.4012]
[1759080597149,7.37,204.46,204.42,7.61]
[1759080597350,7.37,204.46,204.41,4.4012]
[1759080598252,7.37,204.46,204.42,7.61]
[1759080598651,11.7695,204.49,204.42,7.61]
[1759080598851,13.48424852,204.49,204.42,7.61]
[1759080599454,4.3999,204.48,204.42,7.61]
[1759080601152,7.37,204.47,204.41,4.4012]
[1759080601358,7.37,204.47,204.41,12.0112]
[1759080602553,10.95193851,204.46,204.38,7.61]
[1759080602754,1.71474852,204.5,204.41,7.61]
[1759080602960,10.95202442,204.49,204.41,7.61]
[1759080603159,7.37,204.47,204.41,7.61]
[1759080603359,7.37,204.45,204.41,7.61]
[1759080603553,7.37,204.45,204.4,4.4013]
[1759080603759,7.37,204.45,204.41,7.61]
[1759080603955,7.37,204.45,204.4,4.4013]
[1759080604156,7.37,204.45,204.41,7.61]
[1759080604558,7.37,204.45,204.4,4.4013]
[1759080604956,7.37,204.45,204.41,7.61]
[1759080605156,7.37,204.45,204.4,4.4013]
[1759080606258,7.37,204.45,204.41,7.61]
[1759080606461,7.37,204.45,204.4,4.4013]
[1759080607554,7.37,204.45,204.41,7.61]
[1759080608154,7.37,204.45,204.4,4.4013]
[1759080608658,7.37,204.45,204.39,7.61]
[1759080610461,7.37,204.45,204.39,9.32474852]
[1759080610662,7.37,204.45,204.39,7.61]
[1759080610862,7.37,204.45,204.39,9.32474852]
[1759080611563,6.11454852,204.48,204.4,4.4013]
[1759080611760,11.12299053,204.47,204.41,7.52]
[1759080611957,3.58299053,204.46,204.41,7.52]
[1759080612163,7.54,204.47,204.41,7.52]
[1759080612363,7.54,204.45,204.41,7.52]
[1759080612565,7.54,204.47,204.41,7.52]
[1759080612765,3.58444785,204.46,204.41,7.52]
[1759080613069,11.12448442,204.45,204.41,7.52]
[1759080613262,7.54,204.45,204.41,7.52]
[1759080613461,7.54,204.47,204.41,7.52]
[1759080613761,7.54,204.45,204.41,7.52]
[1759080614274,7.54,204.47,204.41,7.52]
[1759080614565,7.54,204.45,204.41,7.52]
[1759080614767,7.54,204.47,204.41,7.52]
[1759080614966,7.54,204.45,204.41,7.52]
[1759080615169,7.54,204.47,204.41,7.52]
[1759080615465,7.54,204.45,204.41,7.52]
[1759080615665,7.54,204.47,204.41,7.52]
[1759080615866,7.54,204.45,204.41,7.52]
[1759080616662,7.54,204.47,204.41,7.52]
[1759080616862,7.54,204.45,204.4,4.4013]
[1759080617066,7.54,204.45,204.41,7.52]
[1759080617262,7.54,204.45,204.4,4.4013]
[1759080617459,7.54,204.45,204.41,7.52]
[1759080617664,7.54,204.47,204.41,7.52]
[1759080617867,3.58498295,204.46,204.41,7.52]
[1759080618062,3.58498295,204.45,204.41,7.52]
[1759080618262,7.54,204.47,204.41,7.52]
[1759080618460,3.58498067,204.46,204.4,4.4013]
[1759080618665,68.4182,204.55,204.39,1.71474852]
[1759080618666,7.54,204.52,204.43,7.52]
[1759080618868,3.58432669,204.51,204.48,1.71474852]
[1759080619172,7.54,204.56,204.49,7.52]
[1759080619360,3.58231407,204.55,204.49,7.52]
[1759080619557,3.58231407,204.54,204.49,4.3994]
[1759080619764,7.54,204.56,204.49,4.3994]
[1759080619765,3.58231407,204.53,204.49,4.3994]
[1759080619964,7.54,204.56,204.5,7.52]
[1759080620166,3.52847883,204.55,204.5,7.52]
[1759080620362,7.54,204.57,204.5,7.52]
[1759080620562,3.52669265,204.56,204.5,7.52]
[1759080620770,3.52669265,204.55,204.49,4.3994]
[1759080620969,3.52669265,204.54,204.5,7.52]
[1759080621174,7.54,204.56,204.5,7.52]
[1759080621470,7.54,204.54,204.5,7.52]
[1759080621868,7.54,204.54,204.49,4.3994]
[1759080622064,7.54,204.54,204.5,7.52]
[1759080622564,7.54,204.54,204.49,4.3994]
[1759080622964,7.54,204.54,204.5,7.52]
[1759080623371,7.54,204.54,204.49,4.3994]
[1759080623570,7.54,204.54,204.5,7.93]
[1759080623770,7.54,204.54,204.49,4.3994]
[1759080624069,7.54,204.54,204.5,7.93]
[1759080624668,7.64,204.53,204.5,7.93]
[1759080625871,7.64,204.53,204.5,4.3991]
[1759080626076,7.64,204.61,204.53,7.93]
[1759080626276,3.52140349,204.6,204.54,1.71474852]
[1759080626473,3.52140349,204.59,204.55,7.93]
[1759080626776,7.64,204.63,204.54,9.64474852]
[1759080626977,3.51957447,204.62,204.54,9.64474852]
[1759080627167,11.15957447,204.61,204.54,9.64474852]
[1759080627471,3.51957447,204.6,204.54,9.64474852]
[1759080627675,7.64,204.61,204.54,14.04304852]
[1759080631478,7.64,204.61,204.56,1.71474852]
[1759080631683,7.64,204.61,204.57,7.93]
[1759080631985,7.64,204.61,204.56,1.71474852]
[1759080632483,7.64,204.63,204.57,7.93]
[1759080635583,1.71474852,204.6,204.53,7.93]
[1759080635776,7.64,204.57,204.5,9.64474852]
[1759080635976,9.35474852,204.62,204.54,1.71474852]
[1759080636184,9.35474852,204.62,204.55,7.93]
[1759080636979,9.35474852,204.62,204.55,12.328]
[1759080638585,9.35474852,204.62,204.55,7.93]
[1759080638784,7.64,204.57,204.49,7.93]
[1759080639087,7.64,204.57,204.48,121.06]
[1759080639088,1.71474852,204.54,204.46,7.93]
[1759080639283,7.64,204.53,204.46,7.93]
[1759080639876,1.71474852,204.52,204.46,7.93]
[1759080641179,1.71474852,204.5,204.42,7.93]
[1759080641376,1.71474852,204.48,204.42,7.93]
[1759080641789,9.35474852,204.5,204.42,7.93]
[1759080642990,1.71474852,204.52,204.44,7.93]
[1759080643286,7.64,204.54,204.49,1.71474852]
[1759080643486,7.64,204.58,204.5,7.93]
[1759080643889,7.64,204.58,204.47,7.93]
[1759080643890,1.71474852,204.54,204.47,7.93]
[1759080644190,7.64,204.53,204.47,7.93]
[1759080644379,12.038,204.57,204.47,7.93]
[1759080644583,1.71474852,204.56,204.47,7.93]
[1759080644991,1.71474852,204.56,204.48,1.71474852]
[1759080645493,7.64,204.55,204.47,7.93]
[1759080647694,7.64,204.55,204.47,12.3298]
[1759080647994,7.64,204.55,204.48,1.71474852]
[1759080649801,7.64,204.55,204.47,14.04454852]
[1759080655099,1.71474852,204.54,204.47,12.3298]
[1759080655402,69.32,204.6,204.47,7.55]
[1759080655609,9.04474852,204.57,204.49,7.55]
[1759080656300,3.48732041,204.56,204.49,11.9493]
[1759080656604,7.33,204.52,204.45,7.55]
[1759080656805,7.33,204.49,204.41,9.26474852]
[1759080658309,7.33,204.49,204.41,7.55]
[1759080658604,7.33,204.49,204.44,4.4004]
[1759080658900,7.33,204.49,204.44,11.9504]
[1759080659299,7.33,204.53,204.44,7.55]
[1759080659702,4.3991,204.52,204.44,7.55]
[1759080659997,7.33,204.51,204.44,7.55]
[1759080662909,11.7293,204.51,204.44,7.55]
[1759080664199,4.3995,204.5,204.42,4.4008]
[1759080664607,4.3995,204.5,204.42,11.9508]
[1759080665807,7.33,204.56,204.44,7.55]
[1759080666112,7.33,204.54,204.44,7.55]
[1759080666504,7.33,204.54,204.44,68.4544]
[1759080666805,7.33,204.54,204.46,7.55]
[1759080667010,7.33,204.58,204.46,7.55]
[1759080667214,3.47790184,204.57,204.46,7.55]
[1759080667509,3.47790184,204.56,204.46,7.55]
[1759080667710,7.33,204.58,204.5,4.3992]
[1759080667910,3.47788126,204.57,204.5,4.3992]
[1759080668109,3.47788126,204.56,204.5,4.3992]
[1759080668312,7.33,204.58,204.51,4.3989]
[1759080668506,3.47787332,204.57,204.51,4.3989]
[1759080668712,7.33,204.58,204.51,11.9489]
[1759080668912,3.47771569,204.57,204.51,11.9489]
[1759080669111,7.33,204.58,204.51,11.9489]
[1759080669310,3.47793919,204.57,204.51,11.9489]
[1759080669511,7.33,204.58,204.51,11.9489]
[1759080669713,3.47771665,204.57,204.51,11.9489]
[1759080669912,7.33,204.58,204.51,11.9489]
[1759080670112,3.47771665,204.57,204.51,11.9489]
[1759080670312,11.7277,204.58,204.51,11.9489]
[1759080670514,7.33,204.56,204.48,4.3995]
[1759080671708,11.7282,204.56,204.48,4.3995]
[1759080672409,11.7282,204.56,204.49,4.3994]
[1759080674715,11.7282,204.56,204.47,11.9499]
[1759080675117,3.47935877,204.55,204.47,11.9499]
[1759080675322,11.7282,204.56,204.47,11.9499]
[1759080676218,3.47995695,204.55,204.47,11.9499]
[1759080676515,11.7282,204.56,204.47,11.9499]
[1759080676815,3.48047779,204.55,204.47,11.9499]
[1759080677114,11.7282,204.56,204.48,4.3996]
[1759080677315,3.48067021,204.55,204.48,4.3996]
[1759080677514,11.7282,204.56,204.48,4.3996]
[1759080677714,3.48127735,204.55,204.48,4.3996]
[1759080677916,11.7282,204.56,204.48,4.3996]
[1759080678118,3.48127724,204.55,204.48,4.3996]
[1759080678317,11.7282,204.56,204.48,4.3996]
[1759080678518,3.48216173,204.55,204.48,4.3996]
[1759080678814,11.7282,204.56,204.48,4.3996]
[1759080679010,3.48216173,204.55,204.48,4.3996]
[1759080679208,11.7282,204.56,204.48,4.3996]
[1759080679413,3.48314728,204.55,204.49,4.3994]
[1759080679613,11.7282,204.56,204.49,4.3994]
[1759080679819,3.48311109,204.55,204.49,4.3994]
[1759080680015,11.7282,204.56,204.49,4.3994]
[1759080680213,3.48311109,204.55,204.49,4.3994]
[1759080680415,11.7282,204.56,204.49,4.3994]
[1759080680616,3.48421321,204.55,204.49,4.3994]
[1759080680916,11.7282,204.56,204.49,4.3994]
[1759080681111,3.48421321,204.55,204.49,4.3994]
[1759080681313,11.7282,204.56,204.49,4.3994]
[1759080681513,3.48560975,204.55,204.49,4.3994]
[1759080681712,7.33,204.56,204.49,7.64]
[1759080681918,3.48529773,204.55,204.49,7.64]
[1759080682114,7.33,204.56,204.49,7.64]
[1759080682320,7.65,204.58,204.52,7.64]
[1759080682516,11.13646323,204.57,204.51,4.3989]
[1759080682708,3.48646323,204.56,204.51,4.3989]
[1759080682913,7.65,204.57,204.51,4.3989]
[1759080683114,3.4864621,204.56,204.52,7.64]
[1759080683309,7.65,204.57,204.52,7.64]
[1759080683517,3.4882188,204.56,204.52,7.74]
[1759080683713,7.65,204.57,204.52,7.74]
[1759080683908,3.4882188,204.56,204.51,4.3989]
[1759080684113,7.65,204.57,204.51,4.3989]
[1759080684318,3.48782439,204.56,204.52,7.74]
[1759080684521,7.65,204.57,204.51,12.1389]
[1759080684714,3.48783384,204.56,204.52,7.74]
[1759080684921,7.65,204.57,204.51,4.3989]
[1759080685119,3.48783384,204.56,204.51,4.3989]
[1759080685320,7.65,204.57,204.51,4.3989]
[1759080685521,3.48751274,204.56,204.5,7.74]
[1759080685716,7.65,204.57,204.5,7.74]
[1759080685921,3.48766863,204.56,204.5,7.74]
[1759080686121,7.65,204.57,204.5,7.74]
[1759080686320,7.36,204.55,204.44,7.74]
[1759080686521,3.4875362,204.54,204.44,7.74]
[1759080686821,7.36,204.55,204.44,7.74]
[1759080687019,3.48800337,204.54,204.44,7.74]
[1759080687215,7.36,204.55,204.44,7.74]
[1759080687420,3.48824191,204.54,204.44,7.74]
[1759080687622,11.7584,204.55,204.48,7.74]
[1759080687818,3.48820566,204.54,204.48,7.74]
[1759080688023,2.67861779,204.6,204.48,7.74]
[1759080688223,7.36,204.58,204.48,7.74]
[1759080688525,3.48820514,204.57,204.48,7.74]
[1759080688726,3.48820514,204.56,204.48,7.74]
[1759080689027,3.48820514,204.55,204.48,7.74]
[1759080689325,11.7578,204.58,204.5,4.3992]
[1759080689525,7.36,204.56,204.48,7.74]
[1759080689726,3.48801473,204.55,204.48,7.74]
[1759080689922,11.758,204.56,204.49,4.3994]
[1759080690121,3.48801906,204.55,204.49,4.3994]
[1759080690326,11.758,204.56,204.49,4.3994]
[1759080690524,3.48799968,204.55,204.49,4.3994]
[1759080690725,11.758,204.56,204.49,4.3994]
[1759080690921,10.84800102,204.55,204.51,7.74]
[1759080691122,7.36,204.55,204.51,7.74]
[1759080691321,7.36,204.58,204.51,7.74]
[1759080691617,3.48793524,204.57,204.51,7.74]
[1759080691823,7.36,204.55,204.51,7.74]
[1759080692023,120.96,204.59,204.48,4.3997]
[1759080692024,7.36,204.58,204.48,4.3997]
[1759080692327,7.36,204.56,204.48,4.3997]
[1759080692528,7.36,204.54,204.48,4.3997]
[1759080697629,7.36,204.52,204.49,7.74]
[1759080697831,11.7582,204.55,204.49,7.74]
[1759080698035,3.49380858,204.54,204.48,4.3997]
[1759080698332,3.49380858,204.53,204.48,4.3997]
[1759080698524,11.7582,204.55,204.49,7.74]
[1759080698726,7.36,204.53,204.49,7.74]
[1759080698928,7.36,204.53,204.5,7.74]
[1759080702540,7.36,204.56,204.5,7.74]
[1759080702841,7.36,204.54,204.5,7.74]
[1759080703034,10.85420175,204.53,204.5,7.74]
[1759080703234,4.3981,204.56,204.5,7.74]
[1759080703533,7.36,204.54,204.39,50.41455558]
[1759080703737,7.36,204.52,204.41,7.74]
[1759080705041,11.7583,204.55,204.44,7.74]
[1759080705234,3.49489944,204.54,204.44,7.74]
[1759080705433,3.49489944,204.53,204.44,7.74]
[1759080705630,11.7583,204.55,204.44,7.74]
[1759080705834,3.49500287,204.54,204.44,7.74]
[1759080706136,10.85500287,204.53,204.44,7.74]
[1759080706339,3.49500287,204.52,204.44,7.74]
[1759080706640,7.36,204.53,204.44,7.74]
[1759080706840,3.49549033,204.52,204.44,7.74]
[1759080707035,7.36,204.53,204.46,4.4]
[1759080707235,3.49549033,204.52,204.44,7.74]
[1759080707443,7.36,204.53,204.44,7.74]
[1759080707743,3.4959872,204.52,204.44,7.74]
[1759080707939,7.36,204.54,204.47,12.1398]
[1759080708139,3.49583129,204.53,204.47,12.1398]
[1759080708337,7.36,204.54,204.47,12.1398]
[1759080708641,7.36,204.52,204.49,7.74]
[1759080708831,4.3984,204.55,204.49,7.74]
[1759080709035,10.85640559,204.54,204.48,4.3996]
[1759080709241,7.36,204.52,204.48,4.3996]
[1759080709541,11.7586,204.54,204.46,12.1402]
[1759080709737,3.49723631,204.53,204.46,12.1402]
[1759080709941,3.49723631,204.52,204.46,12.1402]
[1759080710144,11.7586,204.54,204.46,12.1402]
[1759080710444,7.36,204.52,204.46,12.1402]
[1759080711243,3.49879898,204.51,204.46,12.1402]
[1759080711439,7.36,204.53,204.47,7.74]
[1759080711646,3.49879898,204.52,204.46,4.4002]
[1759080711846,10.85879898,204.51,204.47,7.74]
[1759080712042,7.36,204.51,204.47,7.74]
[1759080712234,7.36,204.51,204.48,7.74]
[1759080713746,7.44,204.54,204.48,12.3096]
[1759080713949,10.93836691,204.53,204.49,7.91]
[1759080714149,10.93836691,204.52,204.49,7.91]
[1759080714341,7.44,204.56,204.46,7.91]
[1759080714645,7.44,204.54,204.46,7.91]
[1759080714845,3.4982957,204.53,204.46,7.91]
[1759080715045,3.4982957,204.52,204.46,7.91]
[1759080715245,7.44,204.54,204.46,7.91]
[1759080715445,3.49830204,204.53,204.46,7.91]
[1759080715746,10.93830204,204.52,204.49,7.91]
[1759080715942,7.44,204.52,204.49,7.91]
[1759080716342,3.49845203,204.51,204.44,7.91]
[1759080716546,10.93875875,204.5,204.44,7.91]
[1759080716837,7.44,204.56,204.48,12.3096]
[1759080717041,7.89163112,204.57,204.48,12.3096]
[1759080717042,7.44,204.54,204.48,12.3096]
[1759080717242,7.08117965,204.53,204.49,7.91]
[1759080717443,7.08117965,204.52,204.49,7.91]
[1759080717635,2.67861779,204.57,204.48,4.3996]
[1759080717636,7.08117965,204.51,204.48,4.3996]
[1759080717840,7.07641779,204.57,204.5,7.91]
[1759080718041,14.52062491,204.56,204.5,7.91]
[1759080718242,7.44,204.54,204.5,7.91]
[1759080718546,14.52062491,204.53,204.5,7.91]
[1759080718746,7.08062491,204.52,204.5,7.91]
[1759080718947,7.44,204.53,204.5,7.91]
[1759080719148,3.49800495,204.52,204.51,7.91]
[1759080719348,7.44,204.54,204.51,7.91]
[1759080719548,7.07986402,204.53,204.51,7.91]
[1759080719743,1.71362628,204.55,204.51,7.91]
[1759080720053,14.51986525,204.54,204.51,7.91]
[1759080720362,14.51986525,204.53,204.51,7.91]
[1759080720550,7.44,204.53,204.51,7.91]
[1759080721149,9.15362628,204.55,204.51,7.91]
[1759080721447,14.51972601,204.54,204.51,7.91]
[1759080721651,7.07972601,204.53,204.52,7.91]
[1759080721947,7.44,204.56,204.52,7.91]
[1759080722252,14.5959442,204.55,204.52,7.91]
[1759080722453,7.1559442,204.54,204.52,7.91]
[1759080722753,7.44,204.55,204.52,7.91]
[1759080723051,7.15575341,204.54,204.52,7.91]
[1759080723251,7.44,204.55,204.52,7.91]
[1759080723445,7.1555649,204.54,204.52,7.91]
[1759080723645,7.44,204.55,204.52,7.91]
[1759080723953,7.15556478,204.54,204.5,7.91]
[1759080724251,14.59556478,204.53,204.47,7.91]
[1759080724453,1.71362628,204.55,204.47,7.91]
[1759080724745,7.15556849,204.54,204.47,7.91]
[1759080724950,7.15556849,204.53,204.47,7.91]
[1759080725152,7.44,204.56,204.49,7.91]
[1759080725359,7.15553538,204.55,204.49,7.91]
[1759080725652,7.15553538,204.54,204.49,4.3994]
[1759080725853,7.44,204.56,204.5,7.91]
[1759080726047,7.1553323,204.55,204.5,7.91]
[1759080726253,7.1553323,204.54,204.49,4.3994]
[1759080726445,7.44,204.56,204.5,7.91]
[1759080726748,7.15517061,204.55,204.5,7.91]
[1759080726948,7.15517061,204.54,204.49,4.3994]
[1759080727145,7.44,204.56,204.49,4.3994]
[1759080727347,14.5952763,204.55,204.51,7.91]
[1759080727548,7.1552763,204.54,204.5,4.3992]
[1759080727847,7.44,204.55,204.51,7.91]
[1759080728250,7.44,204.55,204.5,4.3992]
[1759080728452,7.44,204.55,204.51,7.91]
[1759080729057,7.44,204.55,204.5,4.3992]
[1759080729253,7.44,204.55,204.51,7.91]
[1759080729554,7.44,204.55,204.5,4.3992]
[1759080729754,7.44,204.55,204.51,7.91]
[1759080731758,7.44,204.55,204.5,4.3992]
[1759080731954,7.44,204.55,204.51,7.42]
[1759080732457,7.5,204.58,204.5,1.71362628]
[1759080732658,7.15419058,204.57,204.53,7.42]
[1759080732855,7.15419058,204.56,204.52,1.71362628]
[1759080733050,9.21362628,204.61,204.54,4.3983]
[1759080733251,7.15374351,204.6,204.54,4.3983]
[1759080733551,14.65374351,204.59,204.54,4.3983]
[1759080733763,7.15374351,204.58,204.55,7.42]
[1759080734057,7.5,204.59,204.55,7.42]
[1759080734357,14.65165191,204.58,204.55,7.42]
[1759080734557,7.5,204.58,204.55,7.42]
[1759080743065,7.5,204.58,204.54,4.3983]
[1759080743365,7.5,204.58,204.55,7.42]
[1759080743759,7.5,204.58,204.55,4.3981]
[1759080743959,7.5,204.58,204.56,7.36]
[1759080745358,1.71362628,204.57,204.5,7.36]
[1759080745561,11.66451317,204.56,204.5,7.36]